fUSD/lending_fUSD_20250607
["ID","MTS","AMOUNT","RATE_DAILY","PERIOD"]
[364904909,1749287468908,-6900.0,0.0004566,7]
[364904910,1749287468918,-10000.0,0.00045666,7]
[364904911,1749287468930,-507.34,0.00045679,7]
[364904912,1749287468941,-1003.67,0.00045679,7]
[364904913,1749287468951,-2000.0,0.00045679,7]
[364904914,1749287468962,-2000.0,0.00045679,7]
[364904915,1749287468973,-2000.0,0.0004568,45]
[364904916,1749287468984,-252.59,0.000458,120]
[364904917,1749287468994,-345.65,0.000458,14]
[364904918,1749287469007,-200.0,0.00045835,5]
[364904919,1749287469017,-442.4,0.00045853,30]
[364904920,1749287469028,-1162.98,0.00045853,30]
[364904921,1749287469039,-300.0,0.00045853,30]
[364904922,1749287469049,-909.08,0.00045853,30]
[364904923,1749287469061,-205.0,0.00045853,26]
[364904924,1749287469072,-163.25,0.00045857,30]
[364904925,1749287469081,-163.25,0.00045857,30]
[364904926,1749287469091,-163.25,0.00045857,30]
[364904927,1749287469101,-163.25,0.00045857,30]
[364904928,1749287469110,-454.65,0.00045857,30]
[364904929,1749287469120,-454.65,0.00045857,30]
[364904930,1749287469130,-454.65,0.00045857,30]
[364904931,1749287469140,-454.65,0.00045857,30]
[364904932,1749287469150,-454.65,0.00045857,30]
[364904933,1749287469159,-454.65,0.00045857,30]
[364904934,1749287469169,-454.65,0.00045857,30]
[364904935,1749287469179,-454.65,0.00045857,30]
[364904936,1749287469190,-454.65,0.00045857,30]
[364904937,1749287469200,-454.65,0.00045857,30]
[364904938,1749287469210,-226.92,0.00045857,30]
[364904939,1749287469220,-454.65,0.00045857,30]
[364904940,1749287469230,-163.25,0.00045857,30]
[364904941,1749287469240,-454.65,0.00045857,30]
[364904942,1749287469250,-163.25,0.00045857,30]
[364904943,1749287469260,-454.65,0.00045857,30]
[364904944,1749287469270,-2000.0,0.00045873,60]
[364904945,1749287469280,-3194.66989933,0.0004588,120]
[364904946,1749287469290,-15000.0,0.000459,110]
[364904947,1749287469300,-11404.02586668,0.000459,30]
[364904948,1749287469310,-436.2648868,0.00045986,90]
[364904949,1749287469321,-50000.0,0.00046,46]
[364904950,1749287469331,-50000.0,0.00046,10]
[364904951,1749287469341,-50000.0,0.00046,29]
[364904952,1749287469351,-1476.4731951,0.00046,2]
[364904953,1749287469362,-1000.0,0.00046,30]
[364904954,1749287469372,-3125.57174989,0.00046,30]
[364904955,1749287469382,-105019.91703547,0.00046,2]
[364904956,1749287469392,-353.55590625,0.00046,2]
[364904957,1749287469404,-6097.0,0.00046,30]
[364904958,1749287469414,-1200.001197,0.00046,60]
[364904959,1749287469424,-21000.0,0.00046,120]
[364904960,1749287469434,-525.31674523,0.00046,120]
[364904961,1749287469444,-1500.0,0.00046,120]
[364904962,1749287469454,-10000.0,0.00046,120]
[364904963,1749287469465,-500.0,0.00046,30]
[364904964,1749287469475,-750.0,0.00046,120]
[364904965,1749287469486,-1396.82037835,0.00046,60]
[364904966,1749287469496,-3000.0,0.00046,120]
[364904967,1749287469507,-5000.0,0.00046,120]
[364904968,1749287469516,-8005.21914395,0.00046,120]
[364904969,1749287469526,-7621.2451675,0.00046,120]
[364904970,1749287469536,-3651.23801173,0.00046,120]
[364904971,1749287469546,-2000.0,0.00046,2]
[364904972,1749287469556,-571.28435446,0.00046027,120]
[364904973,1749287469566,-851.32792664,0.000461,30]
[364904974,1749287469576,-230.32,0.00046143,2]
[364904975,1749287469585,-11684.2790906,0.00046148,2]
[364904976,1749287469595,-3201054.69,0.0004618,120]
[364904977,1749287469605,-151.0,0.0004618,14]
[364904978,1749287469615,-151.0,0.0004618,14]
[364904979,1749287469624,-151.0,0.0004618,14]
[364904980,1749287469634,-586.479902,0.0004618,14]
[364904981,1749287469644,-151.0,0.0004618,14]
[364904982,1749287469656,-586.479902,0.0004618,14]
[364904983,1749287469666,-151.0,0.0004618,14]
[364904984,1749287469676,-151.0,0.0004618,14]
[364904985,1749287469686,-151.0,0.0004618,14]
[364904986,1749287469695,-151.0,0.0004618,14]
[364904987,1749287469705,-185.707612,0.0004618,14]
[364904988,1749287469715,-185.707612,0.0004618,14]
[364904989,1749287469725,-182.368168,0.0004618,14]
[364904990,1749287469735,-182.368168,0.0004618,14]
[364904991,1749287469744,-151.0,0.0004618,14]
[364904992,1749287469756,-196.779148,0.0004618,14]
[364904993,1749287469766,-196.779148,0.0004618,14]
[364904994,1749287469778,-151.0,0.0004618,14]
[364904995,1749287469788,-151.0,0.0004618,14]
[364904996,1749287469798,-151.0,0.0004618,14]
[364904997,1749287469807,-207.03349,0.0004618,14]
[364904998,1749287469826,-1294.329855,0.0004618,14]
[364904999,1749287469843,-207.03349,0.0004618,14]
[364905000,1749287469854,-961.409907,0.0004618,14]
[364905001,1749287469864,-1294.329855,0.0004618,14]
[364905002,1749287469875,-312.669811,0.0004618,14]
[364905003,1749287469886,-312.669811,0.0004618,14]
[364905004,1749287469896,-235.368653,0.0004618,14]
[364905005,1749287469907,-331.2617,0.0004618,14]
[364905006,1749287469918,-331.2617,0.0004618,14]
[364905007,1749287469928,-311.181235,0.0004618,14]
[364905008,1749287469939,-151.0,0.0004618,14]
[364905009,1749287469949,-151.0,0.0004618,14]
[364905010,1749287469960,-151.0,0.0004618,14]
[364905011,1749287469971,-151.0,0.0004618,14]
[364905012,1749287469981,-151.0,0.0004618,14]
[364905013,1749287469992,-151.0,0.0004618,14]
[364905014,1749287470003,-151.0,0.0004618,14]
[364905015,1749287470013,-151.0,0.0004618,14]
[364905016,1749287470024,-151.0,0.0004618,14]
[364905017,1749287470035,-362.983416,0.0004618,14]
[364905018,1749287470045,-362.983416,0.0004618,14]
[364905019,1749287470056,-221.624927,0.0004618,14]
[364905020,1749287470067,-151.0,0.0004618,14]
[364905021,1749287470077,-151.0,0.0004618,14]
[364905022,1749287470088,-151.0,0.0004618,14]
[364905023,1749287470098,-207.089752,0.0004618,7]
[364905024,1749287470109,-202.3884,0.0004618,14]
[364905025,1749287470120,-202.3884,0.0004618,14]
[364905026,1749287470131,-475.577294,0.0004618,14]
[364905027,1749287470142,-209.760027,0.0004618,14]
[364905028,1749287470154,-209.760027,0.0004618,14]
[364905029,1749287470165,-151.0,0.0004618,14]
[364905030,1749287470176,-151.0,0.0004618,14]
[364905031,1749287470187,-151.0,0.0004618,14]
[364905032,1749287470198,-151.0,0.0004618,14]
[364905033,1749287470208,-151.0,0.0004618,14]
[364905034,1749287470219,-165.510456,0.0004618,14]
[364905035,1749287470230,-151.0,0.0004618,14]
[364905036,1749287470240,-240.77297,0.0004618,14]
[364905037,1749287470256,-151.0,0.0004618,14]
[364905038,1749287470267,-240.77297,0.0004618,14]
[364905039,1749287470279,-151.0,0.0004618,14]
[364905040,1749287470291,-151.0,0.0004618,14]
[364905041,1749287470302,-151.0,0.0004618,14]
[364905042,1749287470313,-1295.785724,0.0004618,14]
[364905043,1749287470324,-1295.785724,0.0004618,14]
[364905044,1749287470335,-5691.071096,0.0004618,14]
[364905045,1749287470345,-5691.071096,0.0004618,14]
[364905046,1749287470356,-170.766686,0.0004618,14]
[364905047,1749287470367,-151.0,0.0004618,14]
[364905048,1749287470378,-151.0,0.0004618,14]
[364905049,1749287470390,-151.0,0.0004618,14]
[364905050,1749287470401,-151.0,0.0004618,14]
[364905051,1749287470411,-233.544879,0.0004618,14]
[364905052,1749287470422,-233.544879,0.0004618,14]
[364905053,1749287470433,-895.060117,0.0004618,14]
[364905054,1749287470444,-151.0,0.0004618,14]
[364905055,1749287470455,-895.060117,0.0004618,14]
[364905056,1749287470465,-151.0,0.0004618,14]
[364905057,1749287470476,-151.0,0.0004618,14]
[364905058,1749287470487,-151.0,0.0004618,14]
[364905059,1749287470498,-151.0,0.0004618,14]
[364905060,1749287470509,-151.0,0.0004618,14]
[364905061,1749287470519,-151.0,0.0004618,14]
[364905062,1749287470530,-183.92822,0.0004618,14]
[364905063,1749287470541,-183.92822,0.0004618,14]
[364905064,1749287470552,-1094.357078,0.0004618,14]
[364905065,1749287470563,-354.436695,0.0004618,14]
[364905066,1749287470574,-1094.357078,0.0004618,14]
[364905067,1749287470584,-354.436695,0.0004618,14]
[364905068,1749287470595,-184.590968,0.0004618,14]
[364905069,1749287470606,-184.590968,0.0004618,14]
[364905070,1749287470616,-188.641033,0.0004618,14]
[364905071,1749287470627,-151.0,0.0004618,14]
[364905072,1749287470638,-151.0,0.0004618,14]
[364905073,1749287470648,-652.236566,0.0004618,14]
[364905074,1749287470659,-151.0,0.0004618,14]
[364905075,1749287470669,-652.236566,0.0004618,14]
[364905076,1749287470679,-1030.373222,0.0004618,14]
[364905077,1749287470694,-1030.373222,0.0004618,14]
[364905078,1749287470706,-402.907868,0.0004618,14]
[364905079,1749287470717,-402.907868,0.0004618,14]
[364905080,1749287470727,-151.0,0.0004618,14]
[364905081,1749287470738,-151.0,0.0004618,14]
[364905082,1749287470749,-1313.664653,0.0004618,14]
[364905083,1749287470760,-151.0,0.0004618,14]
[364905084,1749287470774,-1313.664653,0.0004618,14]
[364905085,1749287470785,-299.643866,0.0004618,14]
[364905086,1749287470797,-855.267624,0.0004618,14]
[364905087,1749287470809,-299.643866,0.0004618,14]
[364905088,1749287471061,-855.267624,0.0004618,14]
[364905089,1749287471102,-151.0,0.0004618,14]
[364905090,1749287471113,-155.562117,0.0004618,14]
[364905091,1749287471123,-155.562117,0.0004618,14]
[364905092,1749287471133,-151.0,0.0004618,14]
[364905093,1749287471143,-225.218056,0.0004618,14]
[364905094,1749287471154,-225.218056,0.0004618,14]
[364905095,1749287471164,-313.64173,0.0004618,14]
[364905096,1749287471174,-151.0,0.0004618,14]
[364905097,1749287471184,-313.64173,0.0004618,14]
[364905098,1749287471194,-944.0,0.00046259,2]
[364905099,1749287471204,-801.0,0.00046259,2]
[364905100,1749287471214,-633.892,0.00046259,2]
[364905101,1749287471223,-2000.0,0.00046259,2]
[364905102,1749287471234,-176.753,0.00046259,2]
[364905103,1749287471244,-557.0,0.00046259,2]
[364905104,1749287471254,-926.0,0.00046259,2]
[364905105,1749287471265,-155.0,0.00046259,2]
[364905106,1749287471276,-4082.0,0.00046259,2]
[364905107,1749287471286,-3690.94152073,0.00046264,120]
[364905108,1749287471296,-345.65,0.000463,14]
[364905109,1749287471306,-2468.0,0.00046301,60]
[364905110,1749287471317,-2468.0,0.00046301,60]
[364905111,1749287471327,-2468.0,0.00046301,60]
[364905112,1749287471337,-2468.0,0.00046301,60]
[364905113,1749287471347,-2468.0,0.00046301,60]
[364905114,1749287471357,-2468.0,0.00046301,60]
[364905115,1749287471367,-2468.0,0.00046301,60]
[364905116,1749287471377,-2468.0,0.00046301,60]
[364905117,1749287471387,-2468.0,0.00046301,60]
[364905118,1749287471398,-2468.0,0.00046301,60]
[364905119,1749287471408,-2468.0,0.00046301,60]
[364905120,1749287471418,-2468.0,0.00046301,60]
[364905121,1749287471428,-2468.0,0.00046301,60]
[364905122,1749287471438,-2468.0,0.00046301,60]
[364905123,1749287471448,-2468.0,0.00046301,60]
[364905124,1749287471458,-2468.0,0.00046301,60]
[364905125,1749287471467,-2468.0,0.00046301,60]
[364905126,1749287471477,-2468.0,0.00046301,60]
[364905127,1749287471487,-1975.56375048,0.00046301,60]
[364905128,1749287471507,-1459.5,0.00046301,60]
[364905129,1749287471520,-258.17,0.00046301,2]
[364905130,1749287471531,-1333.0,0.00046301,30]
[364905131,1749287471541,-3690.94152073,0.00046313,120]
[364905132,1749287471551,-3434.36004601,0.00046338,120]
[364905133,1749287471561,-296.44,0.00046341,120]
[364905134,1749287471572,-3434.36004601,0.00046356,120]
[364905135,1749287471582,-3690.94152073,0.00046356,120]
[364905136,1749287471592,-1379.72196754,0.00046362,120]
[364905137,1749287471602,-1379.72196754,0.00046367,120]
[364905138,1749287471613,-300.96,0.00046369,30]
[364905139,1749287471624,-708.6,0.00046369,30]
[364905140,1749287471634,-329.75,0.00046369,30]
[364905141,1749287471645,-200.0,0.00046375,120]
[364905142,1749287471655,-500000.0,0.000464,120]
[364905143,1749287471666,-172.82151705,0.000464,120]
[364905144,1749287471676,-465.67359028,0.000464,120]
[364905145,1749287471686,-625.0,0.000464,120]
[364905146,1749287471696,-150.0,0.00046401,30]
[364905147,1749287471707,-251.6205222,0.00046416,120]
[364905148,1749287471717,-251.6205222,0.00046419,120]
[364905149,1749287471728,-168635.40491254,0.0004642,120]
[364905150,1749287472963,-165.59849164,0.0002035,2]
[364905151,1749287472974,-825.1,0.00032646,30]
[364905152,1749287472984,-273.46834652,0.00039663,8]
[364905153,1749287472995,-49.14962549,0.00039663,8]
[364905154,1749287473006,-2240.85036451,0.0004642,120]
[364905155,1749287473035,-334.21,0.00019215,2]
[364905156,1749287473046,-454.65,0.00044235,30]
[364905157,1749287473056,-326.41,0.00045134,30]
[364905158,1749287473066,-42879.11678627,0.0004642,120]
[364905159,1749287473130,-165.59849164,0.00020985,2]
[364905160,1749287473140,-488.56373838,0.00028259,2]
[364905166,1749288106231,236.98,0.00013699,2]
[364905167,1749288310411,14498.17834421,0.000154,2]
[364905168,1749288320114,1787.18402343,9e-05,2]
[364905169,1749288363795,2997.3565769,8e-05,2]
[364905176,1749288476185,17268.38028658,0.00013,15]
[364905177,1749288479844,480.30105546,0.00015,2]
[364905178,1749288479871,1023.60171444,0.00015,2]
[364905189,1749288529497,-151.0,0.000179,2]
[364905190,1749288531736,-151.0,0.000179,2]
[364905194,1749288533739,-250.0,0.000179,2]
[364905195,1749288535961,-190.42808174,0.000179,2]
[364905196,1749288538643,-262.57191826,0.000179,2]
[364905200,1749288632174,-590.28035199,0.000179,2]
[364905201,1749288632187,-686.35471434,0.000179,2]
[364905202,1749288632205,-402.57382848,0.000179,2]
[364905203,1749288632272,-1564.19944891,0.000179,2]
[364905204,1749288632282,-168.5524968,0.000179,2]
[364905205,1749288632293,-8.94081514,0.00017949,2]
[364905217,1749288637918,-241.05918486,0.00017949,2]
[364905218,1749288637928,-758.99266673,0.00017999,2]
[364905219,1749288637938,-300.0,0.00017999,2]
[364905220,1749288637948,-1081.16950191,0.00017999,2]
[364905222,1749288638026,-118.83049809,0.00017999,2]
[364905223,1749288638036,-10012.48957837,0.00018,2]
[364905224,1749288638046,-261273.89478958,0.00018,2]
[364905225,1749288638056,-250.0,0.00018077,2]
[364905226,1749288638066,-3182.92,0.00018167,2]
[364905227,1749288638076,-250.0,0.00018244,2]
[364905228,1749288638086,-151.0,0.0001839,2]
[364905229,1749288638096,-151.0,0.00018488,2]
[364905230,1749288638106,-165.59849164,0.00018535,2]
[364905231,1749288638116,-200.0,0.00018635,2]
[364905232,1749288638127,-200.0,0.00018756,2]
[364905233,1749288638137,-165.59849164,0.00018788,2]
[364905234,1749288638147,-168.5524968,0.00018824,2]
[364905235,1749288638156,-800.0,0.00018995,4]
[364905236,1749288638166,-1443.79142222,0.00019,2]
[364905237,1749288638175,-250.0,0.00019,2]
[364905238,1749288638185,-300.0,0.00019,6]
[364905239,1749288638194,-165.59849164,0.00019041,2]
[364905240,1749288638205,-800.0,0.00019089,4]
[364905241,1749288638214,-600.0,0.000191,6]
[364905242,1749288638223,-286.10873087,0.00019199,2]
[364905243,1749288638233,-500.0,0.00019199,2]
[364905244,1749288638244,-500.0,0.00019199,2]
[364905245,1749288638253,-500.0,0.00019199,2]
[364905247,1749288638263,-500.0,0.00019199,2]
[364905249,1749288638272,-500.0,0.00019199,2]
[364905251,1749288638282,-500.0,0.00019199,2]
[364905252,1749288638292,-500.0,0.00019199,2]
[364905253,1749288638305,-500.0,0.00019199,2]
[364905254,1749288638315,-500.0,0.00019199,2]
[364905256,1749288638324,-500.0,0.00019199,2]
[364905258,1749288638333,-500.0,0.00019199,2]
[364905260,1749288638344,-500.0,0.00019199,2]
[364905262,1749288638354,-500.0,0.00019199,2]
[364905264,1749288638363,-500.0,0.00019199,2]
[364905266,1749288638373,-500.0,0.00019199,2]
[364905268,1749288638383,-500.0,0.00019199,2]
[364905270,1749288638394,-500.0,0.00019199,2]
[364905273,1749288638404,-500.0,0.00019199,2]
[364905276,1749288638414,-500.0,0.00019199,2]
[364905279,1749288638423,-500.0,0.00019199,2]
[364905281,1749288638433,-500.0,0.00019199,2]
[364905284,1749288638443,-500.0,0.00019199,2]
[364905287,1749288638452,-500.0,0.00019199,2]
[364905289,1749288638462,-500.0,0.00019199,2]
[364905291,1749288638471,-500.0,0.00019199,2]
[364905293,1749288638482,-500.0,0.00019199,2]
[364905295,1749288638492,-500.0,0.00019199,2]
[364905297,1749288638501,-500.0,0.00019199,2]
[364905299,1749288638511,-500.0,0.00019199,2]
[364905301,1749288638521,-500.0,0.00019199,2]
[364905303,1749288638530,-500.0,0.00019199,2]
[364905305,1749288638540,-500.0,0.00019199,2]
[364905307,1749288638550,-500.0,0.00019199,2]
[364905309,1749288638560,-500.0,0.00019199,2]
[364905311,1749288638570,-500.0,0.00019199,2]
[364905313,1749288638580,-500.0,0.00019199,2]
[364905315,1749288638590,-500.0,0.00019199,2]
[364905317,1749288638599,-500.0,0.00019199,2]
[364905319,1749288638609,-500.0,0.00019199,2]
[364905321,1749288638619,-500.0,0.00019199,2]
[364905323,1749288638629,-500.0,0.00019199,2]
[364905325,1749288638639,-500.0,0.00019199,2]
[364905327,1749288638650,-414.79254739,0.00019199,2]
[364905329,1749288638660,-500.0,0.00019199,2]
[364905331,1749288638671,-500.0,0.00019199,2]
[364905333,1749288638681,-900.0,0.000192,7]
[364905336,1749288638691,-165.59849164,0.00019294,2]
[364905337,1749288638700,-153.38067053,0.00019299,2]
[364905339,1749288638710,-1200.0,0.000193,7]
[364905342,1749288638721,-735.43589655,0.000193,2]
[364905344,1749288638730,-13640.37465523,0.00019349,2]
[364905346,1749288638740,-192.8295424,0.00019399,2]
[364905348,1749288638749,-483.41982926,0.00019399,2]
[364905350,1749288638759,-500.0,0.00019399,2]
[364905352,1749288638769,-355.04350521,0.00019399,2]
[364905353,1749288638778,-225.20473181,0.00019399,2]
[364905355,1749288638788,-1500.0,0.000194,7]
[364905357,1749288638797,-812076.63631063,0.000194,2]
[364905359,1749288638807,-13640.37465523,0.0001941,2]
[364905362,1749288638817,-153.38067051,0.00019449,2]
[364905363,1749288638828,-13640.37465523,0.00019471,2]
[364905365,1749288638839,-300.0,0.000195,7]
[364905367,1749288638848,-165.59849164,0.00019547,2]
[364905369,1749288638857,-153.38067051,0.000196,2]
[364905371,1749288638867,-300.0,0.000196,7]
[364905373,1749288638876,-420.0,0.00019639,2]
[364905375,1749288638886,-250.0,0.0001969,2]
[364905377,1749288638896,-300.0,0.000197,7]
[364905380,1749288638906,-19876.42,0.000197,2]
[364905381,1749288638916,-1680.0,0.00019735,2]
[364905383,1749288638926,-153.38067051,0.0001975,2]
[364905386,1749288638935,-300.0,0.000198,7]
[364905387,1749288638945,-165.59849164,0.000198,2]
[364905389,1749288638954,-759.83,0.00019821,2]
[364905392,1749288638964,-500.0,0.00019873,2]
[364905394,1749288638974,-99990.40331785,0.000199,2]
[364905396,1749288638984,-879.5327361,0.000199,3]
[364905398,1749288638994,-18092.97006747,0.000199,2]
[364905400,1749288639003,-2714.68556599,0.000199,2]
[364905402,1749288639012,-312.0,0.000199,7]
[364905404,1749288639022,-144379.15086279,0.000199,7]
[364905405,1749288639032,-153.38067051,0.000199,2]
[364905408,1749288639041,-700.13916,0.000199,2]
[364905410,1749288639051,-854.66977096,0.000199,2]
[364905412,1749288639061,-645.23594404,0.000199,3]
[364905414,1749288639070,-6796.0,0.00019973,2]
[364905416,1749288639080,-159.855648,0.00019973,2]
[364905418,1749288639089,-41808.29948375,0.00019985,2]
[364905419,1749288639099,-7056.43757684,0.00019999,2]
[364905421,1749288639109,-178904.66022926,0.00019999,7]
[364905423,1749288639120,-35500783.31133462,0.0002,2]
[364905425,1749288639131,-151344.42338615,0.0002,2]
[364905427,1749288639141,-92378.93024869,0.0002,2]
[364905429,1749288639150,-302.60253582,0.0002,2]
[364905431,1749288639159,-10000.0,0.0002,2]
[364905433,1749288639170,-1489.21277906,0.0002,2]
[364905435,1749288639180,-4324.01508625,0.0002,2]
[364905437,1749288639190,-1418.69957792,0.0002,5]
[364905439,1749288639200,-483.3518581,0.0002,2]
[364905441,1749288639209,-56964.34470439,0.0002,4]
[364905443,1749288639218,-13420353.27585677,0.0002,2]
[364905462,1749288639400,-776.78231321,0.0002,2]
[364905465,1749288639412,-6746.07759937,0.0002,2]
[364905467,1749288639427,-5589.97771579,0.0002,2]
[364905470,1749288639443,-1247.07440956,0.0002,2]
[364905472,1749288639454,-2825.6909516,0.0002,2]
[364905563,1749288645811,155.02120853,0.000179,30]
[364905598,1749288646141,-255.82196543,0.00019349,2]
[364905600,1749288646151,-5758.41675457,0.00019533,2]
[364905631,1749289174259,330.46,0.00013699,2]
[364905632,1749289212843,190.3,0.00017,2]
[364905633,1749289595869,1989.29,0.00016501,2]
[364905643,1749289629194,7151.71726753,0.000179,30]
[364905644,1749289669697,-151.0,0.00017251,2]
[364905645,1749289669719,-23.53954903,0.00017251,2]
[364905646,1749289674801,-127.46045097,0.00017251,2]
[364905647,1749289674823,-85.6276451,0.00017258,2]
[364905648,1749289677298,-65.3723549,0.00017258,2]
[364905649,1749289677321,-151.0,0.00017258,2]
[364905650,1749289740224,155.06,0.0001452,2]
[364905657,1749289806365,-151.0,0.00017123,2]
[364905658,1749289806388,-37.87735667,0.00017123,2]
[364905659,1749289808693,-113.12264333,0.00017123,2]
[364905660,1749289808716,-45.9614392,0.00017125,2]
[364905661,1749289810445,-204.0385608,0.00017125,2]
[364905662,1749289810471,-53.28465177,0.00017126,2]
[364905663,1749289812025,-97.71534823,0.00017126,2]
[364905664,1749289812051,-151.0,0.00017134,2]
[364905665,1749289812079,-25.34825865,0.00017138,2]
[364905667,1749289814121,-125.65174135,0.00017138,2]
[364905668,1749289814144,-115.89418116,0.00017331,2]
[364905669,1749289817343,-134.10581884,0.00017331,2]
[364905670,1749289819566,-151.0,0.0001716,2]
[364905681,1749289832621,-537.15491609,0.00018033,2]
[364905682,1749289832670,-4505.4792908,0.00018033,2]
[364905683,1749289832695,-661.81474885,0.00018033,2]
[364905684,1749289832717,-2487.73983126,0.00018033,2]
[364905685,1749289832728,-1163.15214874,0.00018133,2]
[364905686,1749289832748,-36.84785126,0.00018133,2]
[364905687,1749289832759,-161593.64141056,0.00018134,2]
[364905688,1749289832771,-56297.34057304,0.00018134,2]
[364905689,1749289832791,-461.1075,0.00018134,2]
[364905690,1749289832803,-816.20425299,0.00018134,2]
[364905691,1749289832816,-1116.309453,0.00018134,2]
[364905692,1749289832829,-1982.6480236,0.00018134,2]
[364905693,1749289832842,-955.6844677,0.00018134,2]
[364905694,1749289832863,-511.438934,0.00018134,2]
[364905695,1749289832875,-643.78474791,0.00018134,2]
[364905696,1749289832897,-3430.86173256,0.00018134,2]
[364905711,1749289838199,-151.0,0.00017189,2]
[364905712,1749289838209,-217.0242182,0.00018133,2]
[364905713,1749289838219,-444.44260876,0.00018133,2]
[364905714,1749289838229,-500.0,0.00018133,2]
[364905715,1749289838239,-500.0,0.00018133,2]
[364905716,1749289838248,-429.83171085,0.00018133,2]
[364905717,1749289838258,-500.0,0.00018133,2]
[364905718,1749289838268,-520.65745763,0.00018133,2]
[364905719,1749289838277,-500.0,0.00018133,2]
[364905720,1749289838288,-231.68979165,0.00018133,2]
[364905721,1749289838298,-500.0,0.00018133,2]
[364905722,1749289838308,-500.0,0.00018133,2]
[364905723,1749289838318,-85.63452863,0.00018133,2]
[364905724,1749289838330,-414.36547137,0.00018133,2]
[364905725,1749289838340,-500.0,0.00018133,2]
[364905726,1749289838350,-20412.74771294,0.00018134,2]
[364905727,1749289838360,-21340.1674421,0.00018134,2]
[364905728,1749289838370,-7329.2243212,0.00018134,2]
[364905729,1749289838379,-4774.37,0.0001815,2]
[364905730,1749289838389,-3649.46,0.0001815,2]
[364905731,1749289838399,-916.87,0.00018153,2]
[364905732,1749289838408,-19884.72030746,0.00018171,2]
[364905733,1749289838418,-353107.29,0.00018239,2]
[364905734,1749289838428,-150.0,0.00018271,2]
[364905735,1749289838437,-500.0,0.00018273,2]
[364905736,1749289838447,-500.0,0.00018273,2]
[364905737,1749289838456,-500.0,0.00018273,2]
[364905738,1749289838466,-500.0,0.00018273,2]
[364905739,1749289838476,-375.9873106,0.00018273,2]
[364905740,1749289838485,-500.0,0.00018273,2]
[364905741,1749289838495,-500.0,0.00018273,2]
[364905742,1749289838505,-300.0,0.00018286,2]
[364905743,1749289838515,-7466.15,0.00018287,2]
[364905744,1749289838525,-200.0,0.00018343,2]
[364905745,1749289838535,-250.0,0.00018348,2]
[364905746,1749289838545,-2281.11,0.00018394,2]
[364905747,1749289838555,-169.94402502,0.00018406,2]
[364905748,1749289838564,-300.0,0.00018506,2]
[364905749,1749289838575,-5106.66,0.00018507,2]
[364905750,1749289838584,-263.74,0.00018519,2]
[364905751,1749289838593,-985.69,0.00018543,2]
[364905752,1749289838602,-1000.0,0.00018556,2]
[364905753,1749289838611,-23900.0,0.00018557,2]
[364905754,1749289838621,-150.0,0.00018684,7]
[364905755,1749289838630,-850.0,0.00018691,2]
[364905756,1749289838639,-2751.0,0.00018692,2]
[364905757,1749289838649,-728.54,0.00018692,2]
[364905758,1749289838659,-19884.72030738,0.00018729,2]
[364905759,1749289838668,-1000.0,0.00018751,2]
[364905760,1749289838678,-1989.29,0.00018765,2]
[364905761,1749289838688,-155.00106043,0.00018795,30]
[364905762,1749289838697,-191.67,0.00018806,2]
[364905763,1749289838709,-419.77344038,0.00018821,2]
[364905764,1749289838719,-1000.0,0.00018821,2]
[364905765,1749289838731,-741.6875011,0.00018821,2]
[364905767,1749289838741,-195.26780228,0.00018821,2]